bitfinex/quotes_ETHUSD_20251021
["timestamp","ask_amount","ask_price","bid_price","bid_amount"]
[1761075081185,1.5552,4006.9,4006.4,0.4548]
[1761075081392,3.19,4006.8,4006.7,2.49577153]
[1761075081707,3.19,4006.8,4006.5,2.49592316]
[1761075081907,3.19,4006.8,4006.6,2.94866524]
[1761075082108,3.19,4006.8,4006.7,2.4958195]
[1761075082329,3.19,4006.8,4006.7,2.9486195]
[1761075083420,3.19,4006.8,4006.7,0.4528]
[1761075083631,3.19,4006.8,4006.7,2.9486195]
[1761075084423,3.19,4006.8,4006.7,0.4528]
[1761075084624,3.19,4006.8,4006.4,2.94325114]
[1761075084930,3.19,4006.8,4006.5,2.49593427]
[1761075085134,3.19,4006.8,4006.6,2.49587064]
[1761075085324,3.19,4006.8,4006.7,0.4453]
[1761075085523,3.19,4006.8,4006.6,2.49587064]
[1761075085839,3.19,4006.8,4006.7,0.4453]
[1761075086639,3.19,4006.8,4006.7,2.9411195]
[1761075087253,3.19,4006.8,4006.7,0.4453]
[1761075088206,3.19,4006.8,4006.5,2.49593725]
[1761075088444,3.19,4006.8,4006.5,2.94122453]
[1761075088940,3.19,4006.8,4006.6,0.4453]
[1761075089634,3.19,4006.8,4006.4,0.002]
[1761075089811,3.19,4006.8,4006.5,2.9412421]
[1761075090237,3.19,4006.8,4006.5,0.4453]
[1761075090606,3.19,4006.8,4006.4,2.49795338]
[1761075090917,3.19,4006.8,4006.4,0.002]
[1761075091517,1.7637,4006.7,4006.4,0.002]
[1761075091840,8.18796363,4006.7,4006.4,0.002]
[1761075092002,0.6362973,4006.6,4006.4,0.002]
[1761075092202,0.099,4006.6,4006.4,0.002]
[1761075092408,0.63639946,4006.6,4006.4,0.002]
[1761075093111,0.50688,4006.6,4006.4,0.002]
[1761075099924,6.32526363,4007.0,4006.4,0.002]
[1761075099925,3.189,4006.5,4006.4,0.002]
[1761075100840,1.5552,4007.3,4006.6,2.49583237]
[1761075101142,1.5552,4007.1,4006.4,0.4473]
[1761075101336,0.53752997,4007.0,4006.5,2.94118302]
[1761075101531,1.5552,4006.8,4006.6,2.49587747]
[1761075101748,1.5552,4006.8,4006.6,0.4453]
[1761075102144,1.5552,4006.8,4006.4,0.002]
[1761075102349,1.5552,4006.8,4006.4,0.4473]
[1761075103154,1.5552,4006.8,4006.5,2.49592821]
[1761075103736,1.5552,4006.8,4006.6,0.4453]
[1761075104631,1.5552,4006.8,4006.6,2.94116991]
[1761075104932,4.7442,4006.7,4006.6,2.94116825]
[1761075105127,4.7442,4006.7,4006.6,2.49586825]
[1761075105447,4.7442,4006.7,4006.5,2.49592062]
[1761075105625,4.7442,4006.7,4006.6,2.49588179]
[1761075105954,4.7442,4006.7,4006.6,2.94118179]
[1761075106260,4.7442,4006.7,4006.6,0.4453]
[1761075107362,3.189,4006.7,4006.6,0.4453]
[1761075108953,3.189,4006.7,4006.4,0.002]
[1761075109156,3.189,4006.7,4006.5,0.4453]
[1761075109666,3.189,4006.7,4006.6,2.49588179]
[1761075110044,3.189,4006.7,4006.6,2.94118179]
[1761075112434,3.189,4006.7,4006.4,2.9432617]
[1761075112871,3.189,4006.7,4006.5,2.94124074]
[1761075113076,3.189,4006.7,4006.6,2.94118179]
[1761075113583,3.188,4006.7,4006.6,2.94117126]
[1761075118056,3.188,4006.7,4006.4,2.49797799]
[1761075118057,10.63647609,4006.5,4006.4,0.002]
[1761075118269,12.38233794,4006.5,4006.4,0.002]
[1761075118462,11.58990916,4006.5,4006.4,0.002]
[1761075118886,11.27617506,4006.5,4006.4,0.002]
[1761075119184,30.38229606,4006.5,4006.4,0.002]
[1761075119374,19.98561706,4006.5,4006.4,0.002]
[1761075119547,17.84960734,4006.5,4006.4,0.002]
[1761075119749,8.38572306,4006.5,4006.4,0.002]
[1761075119946,14.71098669,4006.5,4006.4,0.002]
[1761075120143,16.85457669,4006.5,4006.4,0.002]
[1761075120348,17.52594757,4006.5,4006.4,0.002]
[1761075120586,15.38235757,4006.5,4006.4,0.002]
[1761075120790,17.45294757,4006.5,4006.4,0.002]
[1761075121449,2.49600638,4006.4,4006.3,0.002]
[1761075121650,3.00313561,4006.0,4005.9,0.002]
[1761075121900,50.93436184,4006.0,4005.9,0.002]
[1761075122054,51.33021261,4006.0,4005.9,0.002]
[1761075122250,30.225,4005.8,4002.7,1.56770225]
[1761075122451,40.59217918,4005.1,4002.7,0.2347]
[1761075122692,0.50688,4004.4,4002.7,0.2347]
[1761075122915,1.5552,4003.7,4003.2,2.49797035]
[1761075123067,3.188,4003.6,4003.3,0.49960968]
[1761075123387,3.188,4003.5,4003.4,0.6631]
[1761075123792,2.79723874,4004.6,4003.4,0.6631]
[1761075123793,0.2032,4004.7,4003.4,0.6631]
[1761075123950,1.5552,4005.0,4003.5,2.95118067]
[1761075124150,0.6701823,4005.5,4003.5,2.95118067]
[1761075124151,2.76194337,4005.8,4003.9,6.32526363]
[1761075124374,3.188,4005.7,4004.1,6.32526363]
[1761075124564,1.5552,4005.6,4004.1,6.32526363]
[1761075124799,9.51326363,4005.7,4004.7,2.49701836]
[1761075124800,3.287,4005.7,4004.7,2.49701836]
[1761075124973,3.287,4005.7,4004.9,2.4969373]
[1761075124974,1.5552,4005.6,4004.9,2.4969373]
[1761075125281,1.5552,4005.6,4004.5,2.49717446]
[1761075125483,1.5552,4005.6,4004.4,2.49723008]
[1761075125484,1.5552,4005.4,4004.4,2.49723008]
[1761075125687,1.5552,4005.2,4004.6,2.49711687]
[1761075126060,1.5552,4005.2,4004.7,2.49705956]
[1761075126261,1.5552,4005.2,4004.8,2.4969965]
[1761075126549,1.5552,4005.2,4004.8,2.4969921]
[1761075126754,1.5552,4005.2,4004.9,0.4284]
[1761075127152,3.188,4005.1,4004.9,0.4284]
[1761075127357,3.188,4005.0,4004.9,2.92534124]
[1761075127588,0.50688,4006.0,4004.9,3.46757436]
[1761075127766,2.06208,4005.8,4005.2,2.49669995]
[1761075127970,1.5552,4005.6,4005.3,0.2347]
[1761075128172,0.1002,4006.3,4005.3,0.2347]
[1761075128173,0.50688,4006.0,4005.3,0.2347]
[1761075128491,1.5552,4006.2,4005.3,2.73133629]
[1761075128492,3.188,4005.9,4005.3,2.73133629]
[1761075128711,3.188,4005.9,4005.3,0.2347]
[1761075128912,3.188,4005.9,4005.1,2.92518194]
[1761075129103,0.2226,4005.8,4005.1,2.92518194]
[1761075129710,0.2226,4005.8,4005.2,2.49675275]
[1761075129899,3.188,4005.9,4005.3,2.49668188]
[1761075130316,3.188,4005.9,4005.1,0.4284]
[1761075130317,3.188,4005.9,4005.2,2.49673883]
[1761075130613,3.188,4005.9,4004.9,0.2347]
[1761075130614,1.5552,4005.7,4004.9,0.2347]
[1761075130813,0.50688,4005.4,4004.2,2.73207749]
[1761075131013,3.188,4005.3,4004.5,2.49718308]
[1761075132015,3.188,4005.3,4004.3,0.74464775]
[1761075132016,3.2907,4005.3,4004.3,0.4284]
[1761075132220,3.2907,4005.3,4004.5,2.49718958]
[1761075133291,1.5552,4005.2,4004.4,2.49724785]
[1761075133614,1.5552,4005.2,4004.4,2.92564785]
[1761075133826,1.5552,4005.2,4004.6,2.49712431]
[1761075134921,2.59927234,4005.5,4004.3,0.02497315]
[1761075134922,1.5552,4005.5,4004.3,0.02497315]
[1761075135090,1.5552,4005.5,4004.2,0.2347]
[1761075135091,1.884,4005.4,4004.8,2.49700326]
[1761075135285,1.884,4005.3,4004.9,2.49693486]
[1761075135525,1.5552,4005.1,4004.9,2.49693486]
[1761075135723,3.188,4005.0,4004.9,2.49694124]
[1761075135898,2.08419,4006.2,4005.0,0.4284]
[1761075136103,1.5552,4006.0,4005.0,0.4284]
[1761075136302,3.188,4005.9,4005.6,2.49649008]
[1761075136498,0.1038,4006.4,4005.4,2.49656758]
[1761075136499,3.188,4005.8,4005.4,2.49656758]
[1761075136703,4.7432,4005.7,4005.5,2.49655779]
[1761075136903,4.7432,4005.7,4005.3,2.49666718]
[1761075136904,4.7432,4005.7,4005.4,2.49661698]
[1761075137098,4.7432,4005.7,4005.4,0.4284]
[1761075137427,4.7432,4005.7,4005.2,2.49670174]
[1761075137826,4.7432,4005.7,4005.4,2.49662797]
[1761075138221,4.7432,4005.7,4005.3,2.49668469]
[1761075138523,4.7432,4005.7,4005.3,2.92508469]
[1761075138720,4.7432,4005.7,4005.4,2.49661543]
[1761075138924,0.1061,4006.5,4005.4,0.4463]
[1761075139128,0.53504248,4007.0,4005.5,0.47126567]
[1761075139331,0.1061,4007.4,4006.3,2.49602534]
[1761075139627,0.50688,4007.2,4006.4,2.71100384]
[1761075139828,1.5552,4007.2,4006.4,2.71100384]
[1761075140323,3.188,4007.3,4006.4,2.71100384]
[1761075140500,2.06208,4007.2,4006.4,0.215]
[1761075140701,3.188,4007.1,4006.5,0.47125944]
[1761075140912,3.188,4007.0,4006.5,0.4463]
[1761075141131,4.7432,4006.9,4006.5,0.4463]
[1761075141295,3.188,4006.9,4006.7,2.49579885]
[1761075141498,3.188,4006.9,4006.5,0.4463]
[1761075141499,3.188,4006.9,4006.6,2.4958686]
[1761075141899,3.188,4006.9,4006.7,2.49578987]
[1761075142527,3.188,4006.9,4006.6,2.49586496]
[1761075142715,3.188,4006.9,4006.7,2.49581469]
[1761075143116,3.188,4006.9,4006.8,2.49575721]
[1761075143330,0.001,4007.2,4006.8,0.4463]
[1761075143650,0.001,4007.2,4007.1,2.71057036]
[1761075143946,0.001,4007.2,4007.1,3.98369182]
[1761075144116,0.001,4007.2,4007.1,3.16887036]
[1761075144950,0.001,4007.2,4007.1,2.71057036]
[1761075145148,0.001,4007.2,4007.1,3.16887036]
[1761075147015,0.001,4007.2,4007.1,2.71057036]
[1761075147634,0.001,4007.2,4007.1,3.16887036]
[1761075147841,0.001,4007.2,4007.1,3.73532476]
[1761075149352,0.001,4007.2,4007.1,3.16887036]
[1761075150965,0.001,4007.2,4007.1,3.19382606]
[1761075151420,0.001,4007.2,4007.1,3.16887036]
[1761075152925,0.001,4007.2,4007.1,4.72407036]
[1761075154753,0.001,4007.2,4007.1,3.16887036]
[1761075154951,0.001,4007.2,4007.1,4.05402476]
[1761075156456,0.001,4007.2,4007.1,2.71057036]
[1761075156669,0.001,4007.2,4007.1,3.16887036]
[1761075157264,0.001,4007.2,4006.5,1.5552]
[1761075157573,0.001,4007.2,4006.4,0.6733]
[1761075157574,0.001,4007.2,4006.6,2.0135]
[1761075157722,0.001,4007.2,4007.0,2.49560808]
[1761075157919,0.001,4007.2,4007.1,2.49557036]
[1761075160238,0.001,4007.2,4007.1,2.95387036]
[1761075160436,0.001,4007.2,4006.6,0.4583]
[1761075160645,0.001,4007.2,4006.5,2.49594409]
[1761075161047,0.001,4007.2,4007.1,2.49557036]
[1761075161936,0.001,4007.2,4006.9,2.49566579]
[1761075162140,0.001,4007.2,4006.3,3.186]
[1761075162141,0.1001,4007.1,4005.9,0.6794]
[1761075162390,0.1001,4007.1,4005.1,2.73149273]
[1761075162391,0.1001,4007.1,4005.6,0.6794]
[1761075162392,0.50688,4007.0,4005.6,0.6794]
[1761075162656,0.50688,4007.0,4005.9,2.49626106]
[1761075162657,2.659587,4006.9,4005.9,2.49626106]
[1761075162845,0.50688,4006.5,4005.2,0.4583]
[1761075163050,0.50688,4006.2,4005.0,0.002]
[1761075163360,11.083307,4005.8,4005.0,0.002]
[1761075163547,0.2167,4005.1,4005.0,0.002]
[1761075163751,0.82378,4005.1,4005.0,0.002]
[1761075163934,2.37898,4005.1,4005.0,0.002]
[1761075164135,3.32059655,4005.1,4005.0,0.002]
[1761075165258,14.66475555,4005.1,4005.0,0.002]
[1761075165444,4.87579655,4005.1,4005.0,0.002]
[1761075165651,2.37898,4005.1,4005.0,0.002]
[1761075166261,4.87579655,4005.1,4005.0,0.002]
[1761075166970,2.37898,4005.1,4005.0,0.002]
[1761075167169,4.87579655,4005.1,4005.0,0.002]
[1761075168169,12.02308055,4005.1,4005.0,0.002]
[1761075168340,10.67343055,4005.1,4005.0,0.002]
[1761075168536,2.37898,4005.1,4005.0,0.002]
[1761075168842,5.56598,4005.1,4005.0,0.002]
[1761075169372,3.187,4005.1,4005.0,0.002]
[1761075169574,1.5552,4005.5,4005.1,2.49681655]
[1761075169905,1.5552,4005.5,4005.0,0.002]
[1761075169906,0.099,4005.4,4005.0,0.002]
[1761075170853,1.5552,4005.5,4005.0,0.002]
[1761075171154,1.6542,4005.5,4005.0,0.002]
[1761075172463,1.5552,4005.5,4005.0,2.49885364]
[1761075172641,1.5552,4005.5,4005.1,2.49678746]
[1761075173044,1.5552,4005.5,4005.0,2.49886214]
[1761075173706,1.5552,4005.5,4005.0,0.002]
[1761075174503,1.5552,4005.5,4005.1,2.49680563]
[1761075175102,0.60588,4006.0,4005.0,2.49887274]
[1761075175283,3.187,4005.9,4005.1,0.6641]
[1761075175482,4.40048356,4007.1,4005.2,2.49675421]
[1761075175483,3.187,4005.8,4005.2,2.49675421]
[1761075175682,3.187,4005.8,4005.1,0.6641]
[1761075175683,0.2044,4006.3,4005.3,0.46676691]
[1761075175870,0.413,4006.2,4005.7,2.49639082]
[1761075176305,0.413,4006.2,4005.6,2.49645254]
[1761075176893,0.413,4006.2,4005.5,2.49655476]
[1761075177103,0.413,4006.2,4005.7,2.49641296]
[1761075177474,0.413,4006.2,4005.7,2.93821296]
[1761075177905,0.413,4006.2,4005.4,2.49657558]
[1761075177906,0.001,4006.0,4005.4,2.49657558]
[1761075178215,0.001,4006.0,4005.5,2.49651696]
[1761075178504,0.001,4006.0,4005.4,2.49661852]
[1761075179009,0.001,4006.0,4005.3,0.4418]
[1761075179010,0.001,4006.0,4005.6,2.49650406]
[1761075179209,0.001,4006.0,4005.7,0.4418]
[1761075179717,0.001,4006.0,4005.7,2.49643617]
[1761075180289,0.001,4006.0,4005.6,2.49649458]
[1761075180710,0.001,4006.0,4005.4,0.4418]
[1761075180941,0.001,4006.0,4005.4,2.49660453]
[1761075181076,0.001,4006.0,4005.2,2.49675421]
[1761075181287,0.001,4006.0,4005.7,2.49641981]
[1761075181602,0.001,4006.0,4005.7,2.49639581]
[1761075181603,3.187,4005.9,4005.7,2.49639581]
[1761075181802,3.187,4005.9,4005.8,2.49638024]
[1761075182182,0.001,4006.0,4005.9,2.49631793]
[1761075182488,0.001,4006.0,4005.7,2.49644056]
[1761075182811,0.001,4006.0,4005.9,2.49631793]
[1761075184352,0.001,4006.0,4005.1,0.2223]
[1761075184617,0.1,4006.0,4004.6,0.4418]
[1761075184827,0.1,4006.0,4004.8,2.49699878]
[1761075184979,0.1,4006.0,4005.1,2.496777]
[1761075185184,0.1,4006.0,4004.6,0.4418]
[1761075185426,0.50788,4006.0,4005.4,2.49662716]
[1761075186014,0.50788,4006.0,4005.5,2.49652987]
[1761075186015,3.187,4005.9,4005.5,2.49652987]
[1761075186320,3.187,4005.9,4005.4,2.49661412]
[1761075186492,3.187,4005.9,4005.2,2.49669553]
[1761075186693,3.187,4005.9,4005.1,2.49677586]
[1761075187009,0.099,4005.8,4005.1,2.49677586]
[1761075187196,0.099,4005.8,4004.8,2.93878378]
[1761075187397,0.099,4005.8,4005.1,2.49677492]
[1761075187800,0.099,4005.8,4005.2,2.49675132]
[1761075187996,0.099,4005.8,4004.8,0.4418]
[1761075188195,0.099,4005.8,4005.2,2.49673694]
[1761075190023,3.187,4005.9,4005.3,2.49664643]
[1761075190882,0.001,4006.0,4005.4,0.52157563]
[1761075191207,0.001,4006.0,4005.9,2.49631793]
[1761075191521,0.001,4006.0,4005.9,6.1500811]
[1761075191722,0.001,4006.0,4005.9,6.12511793]
[1761075192025,0.001,4006.4,4006.3,2.49606869]
[1761075192190,0.001,4006.4,4006.3,21.69634958]
[1761075192388,0.001,4006.4,4006.3,24.60658447]
[1761075193715,0.001,4006.4,4006.3,28.60658447]
[1761075196410,0.001,4006.4,4006.3,31.79358447]
[1761075198494,0.001,4006.4,4006.3,33.34878447]
[1761075201205,0.001,4006.4,4006.3,14.14850358]
[1761075202208,0.001,4006.4,4006.3,33.34878447]
[1761075203046,0.001,4006.4,4006.3,14.14850358]
[1761075203215,0.001,4006.4,4006.3,10.14850358]
[1761075203415,0.001,4006.4,4006.3,7.68006869]
[1761075207910,0.001,4006.4,4006.3,6.12486869]
[1761075209966,0.001,4006.4,4006.3,2.49606869]
[1761075210158,0.101,4006.4,4005.7,3.186]
[1761075210317,0.101,4006.4,4006.3,2.49606869]
[1761075210870,0.101,4006.4,4005.7,3.186]
[1761075211314,0.101,4006.4,4006.3,2.49606869]
[1761075211509,0.101,4006.4,4006.2,2.49611712]
[1761075211746,0.101,4006.4,4005.2,2.49675421]
[1761075211946,0.101,4006.4,4005.8,2.49637642]
[1761075212246,0.101,4006.4,4004.5,0.002]
[1761075212247,0.50688,4006.1,4004.5,0.002]
[1761075212434,0.50688,4006.1,4004.5,2.49915157]
[1761075212636,0.50688,4005.9,4005.1,2.49681655]
[1761075212830,3.186,4005.8,4005.2,2.49674363]
[1761075213025,0.1,4005.8,4004.7,2.49705476]
[1761075213247,0.1,4006.3,4005.1,0.235]
[1761075213452,0.2043,4006.9,4006.0,0.002]
[1761075213756,0.1,4006.3,4006.0,0.002]
[1761075214233,0.1,4006.3,4006.0,2.49823556]
[1761075216660,0.1,4006.3,4006.0,0.002]
[1761075217063,0.1,4006.3,4006.0,2.49824437]
[1761075217732,0.1,4006.3,4006.0,0.002]
[1761075219053,2.4961933,4006.1,4006.0,0.002]
[1761075219257,12.5705683,4006.1,4006.0,0.002]
[1761075219454,12.6705683,4006.1,4006.0,0.002]
[1761075220068,13.20374655,4006.1,4006.0,0.002]
[1761075220231,20.14449755,4006.1,4006.0,0.002]
[1761075220436,10.7806033,4006.1,4006.0,0.002]
[1761075220870,13.9676033,4006.1,4006.0,0.002]
[1761075221054,10.7806033,4006.1,4006.0,0.002]
[1761075221236,20.5432503,4006.1,4006.0,0.002]
[1761075221435,18.4105353,4006.1,4006.0,0.002]
[1761075221633,17.1009293,4006.1,4006.0,0.002]
[1761075221837,15.7878683,4006.1,4006.0,0.002]
[1761075222264,7.8452733,4006.1,4006.0,0.002]
[1761075222446,22.0151073,4006.1,4006.0,0.002]
[1761075222756,21.60714474,4006.1,4006.0,0.002]
[1761075223149,21.0747243,4006.1,4006.0,0.002]
[1761075223345,21.3122213,4006.1,4006.0,0.002]
[1761075223874,14.0187203,4006.1,4006.0,0.002]
[1761075224069,13.6542733,4006.1,4006.0,0.002]
[1761075224475,18.4212503,4006.1,4006.0,0.002]
[1761075225271,15.2342503,4006.1,4006.0,0.002]
[1761075225476,0.001,4006.4,4006.0,0.002]
[1761075225851,1.13,4006.3,4006.0,0.002]
[1761075226152,1.13,4006.3,4006.0,2.4982489]
[1761075227062,0.001,4006.4,4006.2,2.49609257]
[1761075227375,3.191,4006.3,4006.2,2.49609257]
[1761075227676,3.191,4006.3,4006.0,2.4982291]
[1761075227677,3.291,4006.3,4006.0,0.002]
[1761075227841,0.1,4006.2,4006.0,0.002]
[1761075229874,3.191,4006.3,4006.0,0.002]
[1761075230086,0.001,4006.4,4006.1,2.4961933]
[1761075230287,0.001,4006.4,4006.3,2.49606869]
[1761075230492,3.191,4006.3,4006.2,2.93451643]
[1761075230686,0.001,4006.4,4006.2,2.49611643]
[1761075230857,3.192,4006.4,4006.2,2.49611643]
[1761075232501,0.001,4006.4,4006.3,2.93446869]
[1761075232664,0.001,4006.4,4006.3,3.50268788]
[1761075233270,0.001,4006.4,4006.3,3.4777272]
[1761075234689,0.001,4006.4,4006.3,3.50268788]
[1761075235256,0.001,4006.4,4006.3,3.4777272]
[1761075239966,0.001,4006.4,4006.3,3.50268788]
[1761075240184,0.001,4006.4,4006.3,3.4777272]
[1761075241407,0.001,4006.4,4006.0,0.002]
[1761075241607,0.1031,4006.4,4006.0,0.002]
[1761075243599,0.1021,4006.3,4006.0,0.002]
[1761075245582,2.59818241,4006.3,4006.0,0.002]
[1761075245823,0.1021,4006.3,4006.0,0.002]
[1761075246024,6.46357,4006.1,4006.0,0.002]
[1761075246187,5.066554,4006.1,4006.0,0.002]
[1761075246387,6.6826583,4006.1,4006.0,0.002]
[1761075246801,2.16418,4006.1,4006.0,0.002]
[1761075246997,6.8400093,4006.1,4006.0,0.002]
[1761075247204,10.0270093,4006.1,4006.0,0.002]
[1761075247807,12.5449913,4006.1,4006.0,0.002]
[1761075248002,7.8473733,4006.1,4006.0,0.002]
[1761075248328,9.9232883,4006.1,4006.0,0.002]
[1761075248696,13.2255533,4006.1,4006.0,0.002]
[1761075249025,12.3550533,4006.1,4006.0,0.002]
[1761075249823,7.723643,4006.1,4006.0,0.002]
[1761075250225,10.2198363,4006.1,4006.0,0.002]
[1761075250598,10.3772883,4006.1,4006.0,0.002]
[1761075250999,7.8473733,4006.1,4006.0,0.002]
[1761075251300,5.35118,4006.1,4006.0,0.002]
[1761075252328,3.79598,4006.1,4006.0,0.002]
[1761075253252,3.187,4006.1,4006.0,0.002]
[1761075253966,3.2891,4006.1,4006.0,0.002]
[1761075254313,7.036482,4006.1,4006.0,0.002]
[1761075254515,6.685305,4006.1,4006.0,0.002]
[1761075254743,6.3711,4006.1,4006.0,0.002]
[1761075255125,8.8672933,4006.1,4006.0,0.002]
[1761075256128,10.107407,4006.1,4006.0,0.002]
[1761075256442,3.137,4006.1,4006.0,0.002]
[1761075256832,6.612299,4006.1,4006.0,0.002]
[1761075257057,5.619299,4006.1,4006.0,0.002]
[1761075257232,3.2391,4006.1,4006.0,0.002]
[1761075257636,5.393983,4006.1,4006.0,0.002]
[1761075257951,3.2391,4006.1,4006.0,0.002]
[1761075258324,9.4422093,4006.1,4006.0,0.002]
[1761075259052,6.661788,4006.1,4006.0,0.002]
[1761075259244,5.661788,4006.1,4006.0,0.002]
[1761075259875,3.2391,4006.1,4006.0,0.002]
[1761075260070,3.137,4006.1,4006.0,0.002]
[1761075260883,3.2391,4006.1,4006.0,0.002]
[1761075261092,5.7352933,4006.1,4006.0,0.002]
[1761075261452,11.1657303,4006.1,4006.0,0.002]
[1761075261855,11.6726103,4006.1,4006.0,0.002]
[1761075262366,33.70030911,4006.1,4006.0,0.002]
[1761075262574,25.58448311,4006.1,4006.0,0.002]
[1761075262775,25.2926939,4006.1,4006.0,0.002]
[1761075262986,24.90121011,4006.1,4006.0,0.002]
[1761075263389,24.29257311,4006.1,4006.0,0.002]
[1761075263589,18.28323911,4006.1,4006.0,0.002]
[1761075264390,22.12179911,4006.1,4006.0,0.002]
[1761075264564,22.12279911,4006.1,4006.0,0.002]
[1761075265386,25.73478511,4006.1,4006.0,0.002]
[1761075265685,16.50553211,4006.1,4006.0,0.002]
[1761075265886,11.70638611,4006.1,4006.0,0.002]
[1761075266281,8.51938611,4006.1,4006.0,0.002]
[1761075266455,13.00114511,4006.1,4006.0,0.002]
[1761075267285,11.13306311,4006.1,4006.0,0.002]
[1761075267489,13.27402811,4006.1,4006.0,0.002]
[1761075268095,11.44289111,4006.1,4006.0,0.002]
[1761075268633,14.16837111,4006.1,4006.0,0.002]
[1761075268839,13.40695211,4006.1,4006.0,0.002]
[1761075269118,2.59642781,4006.1,4006.0,0.002]
[1761075269410,2.59642781,4006.1,4006.0,0.4455]
[1761075269411,4.7432,4006.1,4006.0,0.4455]
[1761075269717,0.001,4006.1,4006.0,0.73969369]
[1761075269879,3.188,4006.1,4006.0,2.94175561]
[1761075270081,0.001,4006.1,4006.0,2.94175561]
[1761075270313,0.001,4006.4,4006.3,2.49606869]
[1761075270615,0.001,4006.6,4006.5,2.49594409]
[1761075270819,0.001,4006.9,4006.8,2.49575721]
[1761075270985,0.001,4006.9,4006.8,2.52071478]
[1761075271186,0.001,4006.9,4006.8,2.93925721]
[1761075273610,0.001,4006.9,4006.8,0.4435]
[1761075273814,0.001,4006.9,4006.8,2.93925721]
[1761075273987,0.001,4006.9,4006.8,3.23318293]
[1761075276436,0.001,4006.9,4006.8,2.78968293]
[1761075276802,0.001,4006.9,4006.8,0.29392572]
[1761075277338,0.04,4006.9,4006.8,0.29392572]
[1761075277503,0.04,4006.9,4006.8,3.23318293]
[1761075284145,0.04,4006.9,4006.8,3.2581405]
[1761075284535,0.04,4006.9,4006.8,3.23318293]
[1761075284973,0.04,4006.9,4006.8,3.2581405]
[1761075285534,0.001,4007.4,4007.1,2.49557036]
[1761075285734,0.001,4007.4,4007.1,5.92532606]
[1761075285954,0.001,4007.4,4007.1,6.34387036]
[1761075286273,0.001,4007.4,4007.1,7.89907036]
[1761075287037,0.001,4007.6,4007.5,2.49532127]
[1761075287256,0.001,4007.6,4007.5,8.40291654]
[1761075287479,0.001,4008.5,4008.0,2.49500998]
[1761075287772,0.001,4008.5,4008.0,26.46494978]
[1761075287982,0.001,4008.5,4008.0,26.88349969]
[1761075288182,0.001,4009.1,4009.0,2.49438762]
[1761075288469,0.001,4009.1,4009.0,30.87488303]
[1761075293871,0.0706,4010.0,4009.0,30.87488303]
[1761075293872,0.0706,4010.0,4009.6,2.49401436]
[1761075294095,0.0706,4010.0,4009.6,7.23321436]
[1761075294299,0.0706,4010.0,4009.6,7.67641436]
[1761075294810,0.0706,4010.0,4009.6,11.67641436]
[1761075295015,0.0706,4010.0,4009.6,13.11593537]
[1761075300419,1e-08,4010.1,4010.0,2.49376558]
[1761075300735,1e-08,4010.1,4010.0,7.23196558]
[1761075300886,1e-08,4010.1,4010.0,7.67516558]
[1761075301085,1e-08,4010.1,4010.0,11.67516558]
[1761075301287,1e-08,4010.1,4010.0,14.14360047]
[1761075303186,0.001,4010.7,4010.0,14.14360047]
[1761075303187,1e-08,4010.7,4010.6,4.7801725]
[1761075303383,1e-08,4010.7,4010.6,27.10428221]
[1761075303792,1e-08,4010.7,4010.6,30.59740221]
[1761075303992,1e-08,4010.7,4010.6,33.0658371]
[1761075305652,1e-08,4010.7,4010.6,10.51702739]
[1761075305854,1e-08,4010.7,4010.6,2.4933925]
[1761075306150,1e-08,4010.7,4010.6,5.6753925]
[1761075307535,0.10010001,4010.7,4010.6,5.6753925]
[1761075307733,1e-08,4010.7,4010.6,5.6753925]
[1761075308144,1e-08,4010.7,4010.6,6.1185925]
[1761075308347,2.49221331,4012.5,4010.6,6.1185925]
[1761075308348,0.099,4012.6,4012.5,2.49221183]
[1761075308647,0.1,4012.6,4012.5,2.49221183]
[1761075311365,0.1,4012.9,4012.7,2.49205892]
[1761075311666,0.1,4012.9,4012.0,3.187]
[1761075311820,0.1,4012.9,4011.8,3.186]
[1761075312027,0.1,4012.9,4012.4,2.49226832]
[1761075312534,0.1,4012.9,4012.5,2.49219797]
[1761075312723,0.1982,4011.9,4011.8,2.49264669]
[1761075312954,0.1,4012.9,4011.4,1.5552]
[1761075313248,0.101,4012.8,4011.5,1.5552]
[1761075313572,2.49213441,4012.7,4011.4,3.189]
[1761075313775,0.1972,4011.5,4011.4,2.49289524]
[1761075314212,0.2991,4011.5,4011.0,3.189]
[1761075314507,0.1019,4011.4,4011.1,2.49308169]
[1761075314701,0.1019,4011.4,4011.0,3.189]
[1761075314702,0.1019,4011.8,4011.0,3.189]
[1761075315002,0.1029,4012.6,4011.1,7.19141797]
[1761075315219,0.1038,4012.9,4012.5,2.49215171]
[1761075315500,0.1038,4012.9,4012.6,2.49214253]
[1761075315795,0.1038,4012.9,4011.7,5.68266294]
[1761075315956,0.1038,4012.9,4012.4,2.49222963]
[1761075316453,0.1038,4012.9,4012.4,2.49223061]
[1761075316691,0.1038,4012.9,4012.5,2.49217844]
[1761075316872,0.1038,4012.9,4011.8,2.46843489]
[1761075317188,0.1038,4012.9,4012.2,2.49235268]
[1761075317386,0.1038,4012.9,4012.3,2.49233072]
[1761075317761,0.1038,4012.9,4012.2,2.49238277]
[1761075317963,0.1038,4012.9,4012.5,2.49218674]
[1761075318277,0.1038,4012.9,4012.4,2.4922535]